bitfinex/quotes_BTCUSD_20260307
["timestamp","ask_amount","ask_price","bid_price","bid_amount"]
[1772913237138,0.00022001,67029.0,67021.0,0.0017384]
[1772913237651,0.14024619,67028.0,67021.0,0.00152]
[1772913237851,0.14024619,67028.0,67020.0,0.00152]
[1772913238056,0.14024619,67028.0,67018.0,0.00152]
[1772913238313,0.14024619,67023.0,67013.0,0.0002]
[1772913238888,0.14024619,67023.0,67014.0,0.00152]
[1772913239189,0.5539519,67020.0,66991.0,0.54034409]
[1772913239386,0.00767,67025.0,66982.0,0.05433495]
[1772913239387,0.5539519,67016.0,66990.0,0.00152]
[1772913239587,0.72490551,67019.0,66991.0,0.14135495]
[1772913239588,0.14024619,67013.0,66991.0,0.14135495]
[1772913239784,0.14008991,67011.0,66991.0,0.53832513]
[1772913239991,0.58132129,67009.0,66991.0,0.67322444]
[1772913240166,0.07461795,67008.0,66993.0,0.07463466]
[1772913240565,0.07473836,67008.0,66993.0,0.07463466]
[1772913240777,0.12673381,67007.0,66993.0,0.07463466]
[1772913241376,0.00012041,67008.0,66993.0,0.07463466]
[1772913241550,0.07460814,67017.0,67007.0,0.0002]
[1772913241769,0.07460814,67017.0,67007.0,0.00212129]
[1772913241971,0.08074908,67025.0,67009.0,0.13489931]
[1772913242295,0.08074908,67025.0,67012.0,0.0746135]
[1772913242528,0.08074908,67025.0,67013.0,0.00152]
[1772913242704,0.12673381,67023.0,67011.0,0.0746135]
[1772913243725,0.07460014,67024.0,67014.0,0.5444912]
[1772913243922,0.07460014,67024.0,67015.0,0.13641931]
[1772913244421,0.07460014,67024.0,67015.0,0.21102867]
[1772913244680,0.07460014,67024.0,67015.0,0.07612936]
[1772913244825,0.11703807,67038.0,67015.0,0.07612936]
[1772913245039,0.00022001,67043.0,67018.0,0.13489931]
[1772913245040,0.07479976,67043.0,67018.0,0.13489931]
[1772913245211,0.07479922,67043.0,67021.0,0.5444912]
[1772913245415,0.0747995,67043.0,67025.0,0.5444912]
[1772913245635,0.0747995,67043.0,67026.0,0.00152]
[1772913245838,0.00022001,67043.0,67026.0,0.00152]
[1772913246047,0.07479905,67043.0,67030.0,0.13489931]
[1772913246240,0.00022001,67043.0,67032.0,0.13489931]
[1772913246479,0.00022001,67043.0,67033.0,0.00152]
[1772913246629,0.00022001,67043.0,67034.0,0.07458901]
[1772913246829,0.14628965,67048.0,67034.0,0.61908021]
[1772913247074,0.07457325,67049.0,67035.0,0.00152]
[1772913247229,0.00012066,67048.0,67035.0,0.00152]
[1772913247428,0.00012066,67048.0,67035.0,0.5460112]
[1772913248284,0.00012066,67048.0,67037.0,0.5444912]
[1772913248473,0.0012,67050.0,67037.0,0.5444912]
[1772913248675,0.08031953,67052.0,67041.0,0.66769712]
[1772913248883,0.00575,67052.0,67042.0,0.66769712]
[1772913249186,0.54654735,67053.0,67043.0,0.00152]
[1772913249531,0.54654735,67053.0,67044.0,0.00152]
[1772913249532,0.67072324,67053.0,67044.0,0.00152]
[1772913249688,0.07497831,67055.0,67044.0,0.00152]
[1772913249897,0.0004122,67055.0,67044.0,0.00152]
[1772913250181,0.74570129,67055.0,67044.0,0.00152]
[1772913250359,0.12417589,67054.0,67044.0,0.00134809]
[1772913250868,0.19874339,67054.0,67045.0,0.07457677]
[1772913251080,0.0745675,67054.0,67045.0,0.07457677]
[1772913251880,0.0755675,67054.0,67045.0,0.07457677]
[1772913252323,0.0745675,67054.0,67045.0,0.07457677]
[1772913253710,0.0645675,67054.0,67045.0,0.07457677]
[1772913256830,0.06478751,67054.0,67045.0,0.07457677]
[1772913262917,0.1889634,67054.0,67045.0,0.07457677]
[1772913264759,0.1889634,67054.0,67045.0,0.07440486]
[1772913270505,0.06478751,67054.0,67045.0,0.07440486]
[1772913270684,0.07478744,67054.0,67046.0,0.12320592]
[1772913271074,0.07478744,67054.0,67044.0,0.07592548]
[1772913271879,0.07478744,67054.0,67045.0,0.0002]
[1772913272999,0.51943012,67053.0,67038.0,0.0002]
[1772913273205,0.51943012,67049.0,67039.0,0.00152]
[1772913273508,0.51943012,67048.0,67039.0,0.00152]
[1772913273777,0.12417589,67047.0,67039.0,0.00152]
[1772913273971,0.12417589,67047.0,67038.0,0.0002]
[1772913274172,0.14669776,67047.0,67040.0,0.00152]
[1772913274322,0.12417589,67051.0,67040.0,0.00152]
[1772913274522,0.12417589,67050.0,67040.0,0.00152]
[1772913274725,0.12417589,67049.0,67040.0,0.00152]
[1772913275161,0.07457343,67048.0,67040.0,0.00152]
[1772913275594,0.22127119,67048.0,67040.0,0.00152]
[1772913275796,0.07457343,67048.0,67040.0,0.00152]
[1772913279234,0.07457343,67049.0,67040.0,0.07610211]
[1772913279435,0.07456946,67052.0,67043.0,0.13106381]
[1772913280371,0.07456946,67052.0,67040.0,0.07630211]
[1772913280567,0.07456946,67052.0,67041.0,0.13106381]
[1772913283182,0.07456946,67052.0,67037.0,0.00012066]
[1772913283183,0.51943012,67051.0,67037.0,1e-08]
[1772913283353,0.51943012,67047.0,67026.0,0.0002]
[1772913283564,0.12822405,67043.0,67026.0,0.00172]
[1772913283754,0.12822405,67042.0,67027.0,0.00152]
[1772913284228,0.12822405,67041.0,67027.0,0.00152]
[1772913284429,0.12822405,67037.0,67027.0,0.00152]
[1772913285208,0.07458678,67036.0,67027.0,0.00152]
[1772913286003,0.07458678,67036.0,67026.0,0.03089948]
[1772913286209,0.07458678,67036.0,67027.0,0.00152]
[1772913287909,0.20281083,67036.0,67027.0,0.00152]
[1772913288059,0.07458678,67036.0,67027.0,0.00152]
[1772913288859,0.07458678,67038.0,67029.0,0.13106381]
[1772913289216,0.12822405,67035.0,67027.0,0.00172]
[1772913289556,0.07458901,67034.0,67027.0,0.00172]
[1772913289778,0.07458901,67034.0,67027.0,0.07631646]
[1772913289982,0.07458901,67034.0,67027.0,0.07479646]
[1772913290183,0.07458901,67034.0,67028.0,0.00152]
[1772913291991,0.11703807,67044.0,67028.0,0.07611552]
[1772913292193,0.51955067,67047.0,67031.0,0.13106381]
[1772913292194,0.22102068,67046.0,67031.0,0.13106381]
[1772913292531,0.07457631,67046.0,67035.0,0.13106381]
[1772913292751,0.07457631,67046.0,67036.0,0.13258381]
[1772913292958,0.51943012,67045.0,67036.0,0.00152]
[1772913293193,0.12822405,67042.0,67034.0,0.00152]
[1772913293330,0.12822405,67041.0,67028.0,0.07459552]
[1772913293542,0.12822405,67041.0,67034.0,0.00152]
[1772913294822,0.07458233,67040.0,67034.0,0.00152]
[1772913295423,0.07458233,67040.0,67030.0,0.07459336]
[1772913295641,0.07458233,67040.0,67034.0,0.00152]
[1772913295841,0.07458233,67040.0,67028.0,0.07479552]
[1772913296075,0.07458233,67040.0,67029.0,0.00152]
[1772913296479,0.07458233,67040.0,67028.0,0.07479552]
[1772913296480,0.07469534,67047.0,67028.0,0.07479552]
[1772913296818,0.07469534,67047.0,67029.0,0.00152]
[1772913297022,0.00012055,67047.0,67032.0,0.13106381]
[1772913297711,0.00033035,67047.0,67032.0,0.13106381]
[1772913299078,0.07457566,67046.0,67034.0,0.13106381]
[1772913299417,0.07457566,67046.0,67035.0,0.00152]
[1772913299623,0.07478546,67046.0,67035.0,0.00152]
[1772913300188,0.11967491,67044.0,67031.0,0.00152]
[1772913300386,0.50650193,67038.0,67027.0,0.00172]
[1772913300576,0.11967491,67036.0,67027.0,0.00172]
[1772913301022,0.11967491,67041.0,67027.0,0.00172]
[1772913301225,0.11967491,67039.0,67027.0,0.00172]
[1772913301427,0.0002098,67042.0,67029.0,0.12728683]
[1772913301631,0.07458122,67041.0,67029.0,0.12728683]
[1772913302235,0.07458122,67041.0,67027.0,0.07631647]
[1772913302604,0.07458122,67041.0,67028.0,0.12748683]
[1772913303240,0.06458122,67041.0,67029.0,0.2018814]
[1772913303440,0.06458122,67041.0,67030.0,0.12728683]
[1772913303640,0.06458122,67041.0,67031.0,0.00152]
[1772913305410,0.06458122,67041.0,67032.0,0.07459124]
[1772913306466,0.06458122,67041.0,67031.0,0.00152]
[1772913307113,0.06458122,67041.0,67031.0,0.07611222]
[1772913310078,0.00012055,67047.0,67034.0,0.50554045]
[1772913310324,0.00012055,67047.0,67035.0,0.12439547]
[1772913311412,0.00012055,67047.0,67037.0,0.12439547]
[1772913311612,0.00012055,67047.0,67038.0,0.00152]
[1772913312217,0.00022001,67054.0,67041.0,0.50554045]
[1772913312419,0.07456232,67058.0,67043.0,0.50554045]
[1772913312619,0.07456565,67055.0,67044.0,0.12591547]
[1772913313027,0.07455368,67066.0,67047.0,0.50554045]
[1772913313329,0.07455497,67065.0,67050.0,0.50554045]
[1772913313649,0.07455497,67065.0,67051.0,0.12591547]
[1772913313849,0.07455368,67066.0,67051.0,0.12591547]
[1772913314232,0.07455368,67066.0,67053.0,0.12439547]
[1772913314233,0.07455462,67065.0,67053.0,0.12439547]
[1772913314435,0.07455368,67066.0,67053.0,0.12439547]
[1772913314635,0.07455576,67064.0,67053.0,0.12439547]
[1772913315225,0.00022001,67060.0,67053.0,0.12439547]
[1772913315615,0.00022001,67068.0,67054.0,0.50554045]
[1772913315819,0.00022001,67068.0,67055.0,0.12439547]
[1772913316018,0.11906705,67066.0,67040.0,0.12439547]
[1772913316239,0.11906705,67061.0,67044.0,0.00152]
[1772913316447,0.51023108,67058.0,67045.0,0.00152]
[1772913316650,0.11906705,67055.0,67033.0,0.07458997]
[1772913316899,0.11906705,67051.0,67034.0,0.00152]
[1772913317181,0.11906705,67047.0,67034.0,0.00152]
[1772913317400,0.51023108,67044.0,67034.0,0.00152]
[1772913317581,0.62929813,67043.0,67034.0,0.00152]
[1772913318461,0.0745763,67046.0,67035.0,0.0745879]
[1772913318862,0.70387443,67046.0,67035.0,0.0745879]
[1772913319382,0.0745763,67046.0,67035.0,0.0745879]
[1772913319537,0.19364335,67046.0,67035.0,0.0745879]
[1772913319733,0.62929813,67045.0,67035.0,0.0745879]
[1772913321169,0.07457788,67044.0,67035.0,0.0745879]
[1772913321578,0.00022001,67043.0,67035.0,0.0745879]
[1772913322374,0.00022001,67043.0,67034.0,0.00152]
[1772913322375,0.51023108,67042.0,67034.0,0.00152]
[1772913322572,0.11906705,67039.0,67029.0,0.07459388]
[1772913322815,0.51023108,67038.0,67030.0,0.00152]
[1772913323018,0.51023108,67038.0,67029.0,0.07459388]
[1772913323218,0.51023108,67038.0,67031.0,0.00152]
[1772913323598,0.51023108,67038.0,67032.0,0.00152]
[1772913323811,0.58481579,67038.0,67032.0,0.00152]
[1772913324016,0.58481579,67038.0,67028.0,0.0002]
[1772913324218,0.0001205,67039.0,67033.0,0.00152]
[1772913324468,0.07479221,67050.0,67033.0,0.12591547]
[1772913324591,0.19385926,67050.0,67034.0,0.12439547]
[1772913324785,0.51023108,67049.0,67034.0,0.12439547]
[1772913325113,0.62929813,67047.0,67034.0,0.12439547]
[1772913325290,0.11906705,67046.0,67034.0,0.12439547]
[1772913325482,0.07457677,67045.0,67035.0,0.0745879]
[1772913325701,0.07457677,67045.0,67027.0,0.00152]
[1772913325702,0.11906705,67042.0,67027.0,0.00152]
[1772913325906,0.64713611,67044.0,67028.0,0.00152]
[1772913325907,0.51023108,67039.0,67028.0,0.00152]
[1772913326231,0.51023108,67035.0,67028.0,0.00152]
[1772913326431,0.62929813,67035.0,67028.0,0.00152]
[1772913326610,0.62929813,67033.0,67029.0,0.00152]
[1772913326816,0.51023108,67032.0,67021.0,0.0002]
[1772913327018,0.51023108,67032.0,67022.0,0.00152]
[1772913327354,0.62929813,67032.0,67022.0,0.07612236]
[1772913327888,0.07459235,67031.0,67022.0,0.07612236]
[1772913328218,0.62929813,67031.0,67022.0,0.07612236]
[1772913328622,0.62719012,67031.0,67022.0,0.07612236]
[1772913328842,0.00012053,67033.0,67022.0,0.07612236]
[1772913329460,0.00012053,67033.0,67022.0,0.20051783]
[1772913330153,0.00012053,67033.0,67027.0,0.0002]
[1772913330349,0.00012053,67033.0,67028.0,0.00152]
[1772913332764,0.6507613,67033.0,67028.0,0.00152]
[1772913332962,0.6517613,67033.0,67028.0,0.00152]
[1772913333336,0.6507613,67033.0,67028.0,0.00152]
[1772913333728,0.53269425,67033.0,67016.0,0.0003239]
[1772913333934,0.53157372,67028.0,66998.0,0.0060739]
[1772913334210,0.11906705,67022.0,67001.0,0.00152]
[1772913334510,0.11906705,67022.0,66993.0,0.07463432]
[1772913334511,0.11906705,67015.0,66993.0,0.07463432]
[1772913334690,0.53157372,67012.0,66994.0,0.00152]
[1772913334990,0.11906705,67007.0,66994.0,0.00152]
[1772913335139,0.11906705,67003.0,66994.0,0.00152]
[1772913335347,0.65064077,67003.0,66994.0,0.00152]
[1772913335651,0.53157372,67023.0,66983.0,0.0746447]
[1772913335850,0.53157372,67023.0,66984.0,0.04344973]
[1772913335851,0.53157372,67018.0,66984.0,0.04344973]
[1772913336104,0.53157372,67018.0,66983.0,0.07504599]
[1772913336105,0.53157372,67014.0,66985.0,0.00152]
[1772913336258,0.53157372,67014.0,66983.0,0.07504599]
[1772913336259,0.11906705,67008.0,66986.0,0.00152]
[1772913336613,0.11906705,67001.0,66980.0,0.0022318]
[1772913336757,0.11906705,67001.0,66982.0,0.12439547]
[1772913336758,0.11906705,67000.0,66982.0,0.12439547]
[1772913336966,0.53157372,66997.0,66980.0,0.07464806]
[1772913337169,0.11906705,66994.0,66983.0,0.00152]
[1772913337616,0.00040179,67001.0,66983.0,0.00152]
[1772913337821,0.11906705,67011.0,66988.0,0.12439547]
[1772913338049,0.53157372,67022.0,67014.0,0.0002]
[1772913338334,0.53157372,67018.0,67014.0,0.0002]
[1772913338483,0.53157372,67016.0,67010.0,0.00152]
[1772913339116,0.11924096,67018.0,67010.0,0.00152]
[1772913339632,0.53157372,67017.0,67010.0,0.00152]
[1772913339791,0.6061771,67022.0,67010.0,0.00152]
[1772913339993,0.11924096,67019.0,67010.0,0.00152]
[1772913340335,0.53157372,67016.0,66999.0,0.07462779]
[1772913340514,0.0746062,67019.0,66999.0,0.00012041]
[1772913340515,0.53157372,67012.0,66999.0,0.00012041]
[1772913340714,0.07460834,67017.0,66996.0,0.00152]
[1772913340715,0.53157372,67008.0,66996.0,0.00152]
[1772913340934,0.11924096,67005.0,66975.0,0.0004]
[1772913341138,0.11924096,67001.0,66967.0,0.0024424]
[1772913341310,0.53732372,66998.0,66972.0,0.00152]
[1772913341508,0.53157372,66994.0,66972.0,0.00152]
[1772913341704,0.53157372,66990.0,66972.0,0.00152]
[1772913341960,0.11924096,66987.0,66965.0,0.00152]
[1772913342163,0.11924096,66983.0,66965.0,0.00152]
[1772913342363,0.11924096,66985.0,66966.0,0.00152]
[1772913342583,0.11924096,66985.0,66961.0,0.06631941]
[1772913342584,0.53157372,66982.0,66961.0,0.06631941]
[1772913342775,0.53157372,66986.0,66967.0,0.00152]
[1772913342978,0.11924096,66987.0,66961.0,0.06631941]
[1772913342979,0.53157372,66984.0,66961.0,0.07467033]
[1772913343311,0.56997372,66978.0,66950.0,0.0012]
[1772913343465,0.56997372,66978.0,66925.0,0.0001]
[1772913343466,0.0077875,66938.0,66925.0,0.0001]
[1772913343660,0.07859841,66946.0,66926.0,0.5299987]
[1772913343864,0.11924096,66954.0,66925.0,0.07480938]
[1772913344061,0.02999308,66956.0,66925.0,0.07480938]
[1772913344062,0.53157372,66951.0,66925.0,0.07480938]
[1772913344243,0.53157372,66949.0,66926.0,0.00152]
[1772913344448,0.01415968,66958.0,66929.0,0.1218615]
[1772913344663,0.53157372,66972.0,66933.0,0.1218615]
[1772913344857,0.00171192,66965.0,66936.0,0.5299987]
[1772913345055,0.53328564,66965.0,66939.0,0.1218615]
[1772913345301,0.0004,66975.0,66933.0,0.00040179]
[1772913345302,0.0004,66975.0,66943.0,0.1218615]
[1772913345540,0.11924096,66973.0,66963.0,0.0002]
[1772913345765,0.0004,66975.0,66964.0,0.00152]
[1772913346393,0.0004,66975.0,66965.0,0.07466587]
[1772913346737,0.0004,66975.0,66965.0,0.07506766]
[1772913347162,0.00575,66998.0,66965.0,0.07506766]
[1772913347366,0.00575,66998.0,66968.0,0.5299987]
[1772913347367,0.53157372,66990.0,66968.0,0.5299987]
[1772913347778,0.53157372,66990.0,66968.0,0.5249987]
[1772913347978,0.0003741,66991.0,66969.0,0.1218615]
[1772913348251,0.0003741,66991.0,66970.0,0.5299987]
[1772913348467,0.0003741,66991.0,66971.0,0.60465788]
[1772913348680,0.00575,66998.0,66971.0,0.07465918]
[1772913348819,0.53157372,67014.0,66975.0,0.0004]
[1772913349028,0.53157372,67014.0,66979.0,0.1218615]
[1772913349233,0.07518496,67033.0,66976.0,0.00152]
[1772913349234,0.0119321,67039.0,66982.0,1.050506]
[1772913349462,0.65081468,67038.0,67003.0,0.5299987]
[1772913349618,0.60987694,67046.0,67006.0,0.1218615]
[1772913349817,0.53157372,67045.0,67008.0,0.1218615]
[1772913350157,0.60987694,67046.0,67000.0,0.0004]
[1772913350158,0.53157372,67041.0,67009.0,0.00152]
[1772913350335,0.53157372,67037.0,67010.0,0.00152]
[1772913350539,0.65081468,67033.0,67011.0,0.00152]
[1772913350857,0.00012077,67037.0,67013.0,0.5299987]
[1772913351454,0.00012077,67037.0,67012.0,0.00152]
[1772913351455,0.00012077,67037.0,67015.0,0.5299987]
[1772913351657,0.00012077,67037.0,67016.0,0.1218615]
[1772913351854,0.00012077,67037.0,67017.0,0.5299987]
[1772913352443,0.00012077,67037.0,67018.0,0.07460682]
[1772913352655,0.00012077,67037.0,67019.0,0.5315187]
[1772913353423,0.06936173,67045.0,67019.0,0.5315187]
[1772913353751,0.11924096,67043.0,67020.0,0.00152]
[1772913353960,0.07457757,67045.0,67021.0,0.00152]
[1772913353961,0.53157372,67040.0,67021.0,0.00152]
[1772913354157,0.65081468,67038.0,67022.0,0.00152]
[1772913354357,0.65081468,67038.0,67019.0,0.00011749]
[1772913354529,0.11924096,67037.0,67023.0,0.07460014]
[1772913354733,0.53157372,67036.0,67024.0,0.00152]
[1772913355183,0.53157372,67036.0,67021.0,0.0746026]
[1772913355376,0.53157372,67036.0,67025.0,0.00152]
[1772913355984,0.07458017,67042.0,67025.0,0.00152]
[1772913356184,0.53157372,67041.0,67025.0,0.00152]
[1772913356591,0.53157372,67041.0,67006.0,0.5299987]
[1772913356592,0.53157372,67038.0,67006.0,0.5299987]
[1772913356792,0.11924096,67035.0,67007.0,0.07613906]
[1772913356951,0.53157372,67032.0,67007.0,0.07461906]
[1772913357153,0.11924096,67029.0,67008.0,0.00152]
[1772913357354,0.53157372,67026.0,67007.0,0.07461906]
[1772913357559,0.53157372,67026.0,67009.0,0.00152]
[1772913358090,0.53157372,67026.0,67006.0,0.07461906]
[1772913358252,0.53157372,67024.0,67007.0,0.00152]
[1772913358682,0.07459243,67031.0,67009.0,0.5299987]
[1772913358850,0.53157372,67032.0,67009.0,0.5299987]
[1772913359502,0.65081468,67032.0,67009.0,0.5299987]
[1772913359702,0.11924096,67031.0,67009.0,0.5299987]
[1772913359913,0.48940539,67030.0,67010.0,0.00152]
[1772913360072,0.61170673,67030.0,67010.0,0.00152]
[1772913360272,0.12252135,67036.0,67011.0,0.53442372]
[1772913360477,0.00022001,67036.0,67014.0,0.11132231]
[1772913360801,0.07480727,67036.0,67013.0,0.07461016]
[1772913361125,0.48940539,67031.0,67014.0,0.00152]
[1772913361301,0.07480727,67036.0,67014.0,0.00152]
[1772913361302,0.12230134,67030.0,67014.0,0.00152]
[1772913361514,0.61170673,67030.0,67014.0,0.00152]
[1772913361684,0.07480727,67036.0,67014.0,0.00152]
[1772913361685,0.00022001,67036.0,67015.0,0.53442372]
[1772913362025,0.00022001,67047.0,67028.0,0.53442372]
[1772913362226,0.00022001,67047.0,67030.0,0.52753599]
[1772913362586,0.00022001,67047.0,67031.0,0.07459235]
[1772913362786,0.00022001,67047.0,67031.0,0.0720044]
[1772913363320,0.00022001,67047.0,67032.0,0.52753599]
[1772913363532,0.00022001,67047.0,67032.0,0.27753599]
[1772913363939,0.00022001,67047.0,67032.0,0.27741599]
[1772913364480,0.00022001,67047.0,67032.0,0.40151953]
[1772913364720,0.00022001,67047.0,67034.0,0.52753599]
[1772913364918,0.00022001,67047.0,67036.0,0.52753599]
[1772913365698,0.00022001,67047.0,67037.0,0.00152]
[1772913365699,0.07479544,67047.0,67037.0,0.00152]
[1772913365919,0.00022001,67047.0,67038.0,0.00152]
[1772913367044,0.00022001,67047.0,67039.0,0.0290618]
[1772913370932,0.12549087,67046.0,67035.0,0.0745879]
[1772913371134,0.12549087,67046.0,67026.0,0.52753599]
[1772913371135,0.49224568,67043.0,67028.0,0.07471597]
[1772913371359,0.12549087,67040.0,67029.0,0.00152]
[1772913371639,0.49224568,67045.0,67029.0,0.00152]
[1772913372035,0.07479473,67047.0,67029.0,0.00152]
[1772913372235,0.12549087,67042.0,67030.0,0.07459346]
[1772913372458,0.61773655,67040.0,67030.0,0.07459346]
[1772913372628,0.07457788,67044.0,67030.0,0.07459346]
[1772913372841,0.07479481,67047.0,67030.0,0.60212945]
[1772913373042,0.00022001,67047.0,67030.0,0.60212945]
[1772913373242,0.00022001,67047.0,67031.0,0.52753599]
[1772913373762,0.00022001,67047.0,67030.0,0.07459346]
[1772913373763,0.00022001,67047.0,67032.0,0.00152]
[1772913374487,0.00022001,67047.0,67033.0,0.07459012]
[1772913374885,0.00022001,67047.0,67034.0,0.00152]
[1772913375064,7.001e-05,67047.0,67034.0,0.00152]
[1772913375266,7.001e-05,67047.0,67033.0,0.06119204]
[1772913375472,7.001e-05,67047.0,67034.0,0.00152]
[1772913377151,7.001e-05,67047.0,67035.0,0.0745879]
[1772913377353,7.001e-05,67047.0,67035.0,0.60212389]
[1772913377755,0.00142001,67050.0,67037.0,0.52753599]
[1772913378158,0.12549087,67048.0,67029.0,0.07459457]
[1772913378368,0.12549087,67048.0,67030.0,0.00152]
[1772913378785,0.12549087,67048.0,67032.0,0.0002]
[1772913379199,0.00022001,67047.0,67032.0,0.07479124]
[1772913380431,0.00022001,67047.0,67032.0,0.60232723]
[1772913380632,0.07479461,67047.0,67032.0,0.07479124]
[1772913380797,0.07479461,67047.0,67032.0,0.0002]
[1772913380999,0.49224568,67043.0,67033.0,0.00152]
[1772913381211,0.14630484,67042.0,67034.0,0.00152]
[1772913381410,0.0747948,67047.0,67034.0,0.00152]
[1772913381906,0.20028567,67047.0,67035.0,0.00152]
[1772913382112,0.12549087,67045.0,67036.0,0.00152]
[1772913382313,0.49224568,67042.0,67028.0,0.00012055]
[1772913382511,0.12549087,67039.0,67028.0,0.00012055]
[1772913382713,0.49224568,67039.0,67028.0,0.00012055]
[1772913382914,0.12549087,67037.0,67029.0,0.00152]
[1772913383197,0.20007661,67037.0,67028.0,0.00012055]
[1772913383629,0.20007661,67037.0,67029.0,0.00152]
[1772913383945,0.20007661,67037.0,67030.0,0.00152]
[1772913384708,0.20007661,67037.0,67031.0,0.00152]
[1772913385077,0.49224568,67034.0,67028.0,0.00152]
[1772913385286,0.12549087,67029.0,67020.0,0.06547331]
[1772913385496,0.14639224,67029.0,67021.0,0.00152]
[1772913385668,0.00012053,67029.0,67021.0,0.00152]
[1772913387257,0.14627171,67032.0,67022.0,0.07460236]
[1772913387399,0.07458924,67034.0,67022.0,0.07472289]
[1772913387600,0.07458924,67034.0,67023.0,0.00152]
[1772913388946,0.07458723,67036.0,67023.0,0.00152]
[1772913389253,0.07458723,67036.0,67023.0,0.52905599]
[1772913389432,0.07458723,67036.0,67024.0,0.07460014]
[1772913390200,0.07458723,67036.0,67025.0,0.00152]
[1772913390201,0.2000781,67036.0,67025.0,0.00152]
[1772913390407,0.14627171,67036.0,67025.0,0.00152]
[1772913390609,0.22085811,67037.0,67025.0,0.00152]
[1772913390846,0.0745864,67037.0,67025.0,0.00152]
[1772913391260,0.34634813,67038.0,67025.0,0.00152]
[1772913391261,0.14627171,67038.0,67025.0,0.00152]
[1772913391491,0.07458138,67041.0,67026.0,0.19529711]
[1772913391492,0.07458347,67039.0,67026.0,0.19529711]
[1772913392468,0.22094972,67044.0,67027.0,0.49604936]
[1772913392789,0.07457863,67044.0,67027.0,0.62123456]
[1772913392989,0.2000695,67044.0,67027.0,0.62123456]
[1772913393504,0.2000695,67044.0,67028.0,0.07459569]
[1772913393628,0.52725061,67043.0,67028.0,0.07459569]
[1772913393831,0.12549087,67040.0,67028.0,0.07459569]
[1772913394043,0.14637109,67042.0,67029.0,0.00152]
[1772913394208,0.22094972,67044.0,67029.0,0.00152]
[1772913394415,0.22094897,67046.0,67031.0,0.49604936]
[1772913394660,0.07479677,67047.0,67029.0,0.00152]
[1772913395114,0.07479481,67047.0,67031.0,0.1251852]
[1772913395317,0.07479481,67047.0,67032.0,0.62123456]
[1772913395542,0.07479481,67047.0,67033.0,0.07459012]
[1772913395738,0.07479481,67047.0,67033.0,0.57063948]
[1772913395936,0.07479481,67047.0,67033.0,0.69582468]
[1772913396354,0.07479481,67047.0,67033.0,0.07459012]
[1772913396972,0.52725061,67046.0,67030.0,0.07459346]
[1772913397216,0.12549087,67044.0,67031.0,0.00152]
[1772913398656,0.12347883,67042.0,67032.0,0.07611124]
[1772913399747,0.12347883,67042.0,67032.0,0.07588788]
[1772913400285,0.14643802,67043.0,67032.0,0.07588788]
[1772913400484,0.22101645,67044.0,67039.0,0.00015]
[1772913400639,0.19806005,67041.0,67040.0,0.00152]
[1772913400839,0.72531066,67041.0,67040.0,0.00152]
[1772913401826,0.12347883,67041.0,67040.0,0.00152]
[1772913401968,0.34449622,67046.0,67040.0,0.00152]
[1772913402182,0.12347883,67044.0,67040.0,0.00152]
[1772913402596,0.12347883,67043.0,67040.0,0.00152]
[1772913402819,0.12347883,67043.0,67041.0,0.00152]
[1772913403016,0.12347883,67043.0,67042.0,0.00152]
[1772913403963,0.12347883,67041.0,67030.0,0.07479346]
[1772913404312,0.074579,67043.0,67031.0,0.00152]
[1772913404479,0.12347883,67042.0,67031.0,0.00152]
[1772913404672,0.12347883,67042.0,67030.0,0.07479346]
[1772913404876,0.07458122,67041.0,67032.0,0.07459124]
[1772913405075,0.19806005,67041.0,67032.0,0.07459124]
[1772913405280,0.12347883,67040.0,67032.0,0.07459124]
[1772913406646,0.12347883,67040.0,67032.0,0.08459124]
[1772913407452,0.19806181,67040.0,67032.0,0.08459124]
[1772913408203,1e-08,67052.0,67032.0,0.08459124]
[1772913408405,1e-08,67052.0,67036.0,0.11790603]
[1772913408575,1e-08,67052.0,67038.0,0.11790603]
[1772913408782,1e-08,67052.0,67039.0,0.00152]
[1772913408783,0.12347883,67048.0,67039.0,0.00152]
[1772913409079,0.07457788,67044.0,67040.0,0.00152]
[1772913409278,0.07457139,67050.0,67041.0,0.00152]
[1772913409482,0.07457139,67050.0,67042.0,0.00152]
[1772913409685,0.12347883,67049.0,67043.0,0.00152]
[1772913409884,0.07457139,67050.0,67044.0,0.00152]
[1772913410090,0.12347883,67049.0,67045.0,0.00152]
[1772913410293,0.07456947,67052.0,67046.0,0.00152]
[1772913410501,0.12347883,67051.0,67047.0,0.00152]
[1772913410700,0.12347883,67051.0,67048.0,0.00152]
[1772913410904,0.12359942,67051.0,67049.0,0.00152]
[1772913411103,0.12359942,67051.0,67050.0,0.00134907]
[1772913411404,0.07457121,67050.0,67035.0,0.11790603]
[1772913411577,0.07457121,67050.0,67036.0,0.00152]
[1772913411951,0.07489982,67050.0,67036.0,0.00152]
[1772913412724,0.12347883,67049.0,67036.0,0.00152]
[1772913413247,0.12347883,67049.0,67034.0,0.07458814]
[1772913413248,0.07457343,67048.0,67034.0,0.07458814]
[1772913413534,0.07457343,67048.0,67037.0,0.00152]
[1772913413706,0.07490204,67048.0,67037.0,0.00152]
[1772913413921,0.07490204,67048.0,67038.0,0.00152]
[1772913415211,0.00032861,67048.0,67038.0,0.00152]
[1772913415513,0.00032861,67048.0,67039.0,0.02677612]
[1772913415712,0.00032861,67048.0,67039.0,0.14468215]
[1772913416170,0.00032861,67048.0,67040.0,0.11790603]
[1772913417471,0.00032861,67048.0,67041.0,0.07458122]
[1772913417623,0.00012059,67051.0,67042.0,0.11790603]
[1772913419055,1e-08,67052.0,67042.0,0.11790603]
[1772913419056,1e-08,67052.0,67043.0,0.11790603]
[1772913419301,1e-08,67052.0,67044.0,0.11942603]
[1772913419841,1e-08,67052.0,67046.0,0.11790603]
[1772913420046,0.00022001,67057.0,67048.0,0.12083101]
[1772913420389,0.146543,67064.0,67051.0,0.488034]
[1772913420598,0.00022001,67068.0,67054.0,0.488034]
[1772913420895,0.07477145,67068.0,67055.0,0.12235101]
[1772913421116,0.00022001,67069.0,67056.0,0.12083101]
[1772913421260,0.07454133,67077.0,67058.0,0.12083101]
[1772913421466,0.00575,67079.0,67051.0,0.33526952]
[1772913421663,1e-08,67079.0,67055.0,0.12083101]
[1772913421907,1e-08,67080.0,67061.0,0.488034]
[1772913422114,0.17416621,67096.0,67064.0,0.12083101]
[1772913422330,0.00022001,67097.0,67065.0,0.51071864]
[1772913422512,0.00022001,67097.0,67062.0,0.00152]
[1772913422513,0.00022001,67097.0,67068.0,0.12083101]
[1772913422680,0.00022001,67097.0,67071.0,0.51071864]
[1772913422878,0.00022001,67097.0,67074.0,0.12083101]
[1772913423149,0.00179781,67100.0,67078.0,0.12083101]
[1772913423349,0.00219995,67100.0,67081.0,0.51071864]
[1772913423563,0.07671599,67100.0,67079.0,0.00152]